bitfinex-derivatives/quotes_SOLF0:USTF0_20250907
["timestamp","ask_amount","ask_price","bid_price","bid_amount"]
[1757236139218,7.39,203.74,203.7,4.38756707]
[1757236139417,7.39,203.74,203.66,135.732259]
[1757236139615,7.39,203.74,203.67,4.38720431]
[1757236139918,7.39,203.74,203.68,4.38720431]
[1757236140120,7.39,203.74,203.69,4.38720431]
[1757236140310,5.51875446,203.75,203.66,135.732259]
[1757236140511,7.39,203.74,203.67,4.38714078]
[1757236140714,7.39,203.74,203.68,4.38714078]
[1757236140914,5.51875446,203.75,203.69,4.38714078]
[1757236141120,7.39,203.74,203.66,135.732259]
[1757236141322,7.39,203.74,203.67,4.3868874]
[1757236141519,7.39,203.74,203.68,4.3868874]
[1757236141719,7.39,203.74,203.69,4.3868874]
[1757236141920,7.39,203.74,203.66,135.732259]
[1757236142120,7.39,203.74,203.67,4.38682923]
[1757236142320,7.39,203.74,203.68,4.38682923]
[1757236142618,7.39,203.74,203.69,4.38682923]
[1757236142820,7.39,203.74,203.66,135.732259]
[1757236143120,7.39,203.74,203.67,4.38656106]
[1757236143323,7.39,203.74,203.68,4.38656106]
[1757236143622,7.39,203.74,203.69,4.38656106]
[1757236143823,7.39,203.74,203.66,4.4181]
[1757236144123,7.39,203.74,203.67,4.38633342]
[1757236144321,7.39,203.74,203.68,4.38633342]
[1757236144621,7.39,203.74,203.69,4.38633342]
[1757236144823,7.39,203.74,203.65,2.3859183]
[1757236145022,7.39,203.74,203.66,4.38593249]
[1757236145223,7.39,203.74,203.67,4.38593249]
[1757236145418,7.39,203.74,203.68,4.38593249]
[1757236145619,7.39,203.74,203.69,4.38593249]
[1757236145921,7.39,203.74,203.65,2.3859183]
[1757236146121,7.39,203.74,203.66,4.38544811]
[1757236146323,7.39,203.74,203.67,4.38544811]
[1757236146517,7.39,203.74,203.68,4.38544811]
[1757236146719,7.39,203.74,203.69,4.38544811]
[1757236147020,7.39,203.74,203.65,2.3859183]
[1757236147221,7.39,203.74,203.66,4.38493948]
[1757236147522,7.39,203.74,203.67,4.38493948]
[1757236147721,7.39,203.74,203.68,4.38493948]
[1757236147922,7.39,203.74,203.69,4.38493948]
[1757236148122,7.39,203.74,203.65,2.3859183]
[1757236148325,7.39,203.74,203.66,4.3847974]
[1757236148623,7.39,203.74,203.67,4.3847974]
[1757236148928,7.39,203.74,203.68,4.3847974]
[1757236149130,7.39,203.74,203.69,4.3847974]
[1757236149425,9.7759183,203.74,203.62,2.3859183]
[1757236149627,7.90467276,203.71,203.63,4.38563719]
[1757236149921,7.39,203.7,203.64,4.38563719]
[1757236150129,7.39,203.7,203.59,6.8057183]
[1757236150323,7.39,203.7,203.6,4.38472388]
[1757236150517,7.39,203.7,203.61,4.38472388]
[1757236150829,7.39,203.7,203.62,4.38472388]
[1757236151027,7.39,203.7,203.63,4.38472388]
[1757236151222,7.39,203.7,203.64,4.38472388]
[1757236151422,7.39,203.7,203.59,6.8057183]
[1757236151727,7.39,203.7,203.6,4.38319565]
[1757236151922,7.39,203.7,203.61,4.38319565]
[1757236152122,12.90875446,203.7,203.62,4.38319565]
[1757236152327,12.90875446,203.7,203.59,4.4198]
[1757236152528,12.90875446,203.7,203.6,4.3818988]
[1757236152827,12.90875446,203.7,203.61,4.3818988]
[1757236153027,12.90875446,203.7,203.62,4.3818988]
[1757236153229,12.90875446,203.7,203.59,4.4198]
[1757236153529,12.90875446,203.7,203.6,4.38044366]
[1757236153826,12.90875446,203.7,203.61,4.38044366]
[1757236154024,7.39,203.68,203.58,2.3859183]
[1757236154230,9.7759183,203.68,203.59,4.38080065]
[1757236154527,9.7759183,203.68,203.6,4.38080065]
[1757236154727,9.7759183,203.68,203.58,2.3859183]
[1757236154923,9.7759183,203.68,203.59,4.37875587]
[1757236155126,9.7759183,203.68,203.58,6.8059183]
[1757236155326,9.7759183,203.68,203.59,4.37708371]
[1757236155623,9.7759183,203.68,203.58,6.8059183]
[1757236155823,9.7759183,203.68,203.59,4.37696279]
[1757236156024,9.7759183,203.68,203.6,4.37693987]
[1757236156224,9.7759183,203.68,203.58,6.8059183]
[1757236156429,9.7759183,203.68,203.59,4.375653]
[1757236156727,9.7759183,203.68,203.58,6.8059183]
[1757236156931,9.7759183,203.68,203.59,4.37553579]
[1757236157222,9.7759183,203.68,203.58,6.8059183]
[1757236157430,9.7759183,203.68,203.59,4.37432193]
[1757236157627,9.7759183,203.68,203.58,6.8059183]
[1757236157828,9.7759183,203.68,203.59,4.37432193]
[1757236158028,9.7759183,203.68,203.58,6.8059183]
[1757236158229,9.7759183,203.68,203.59,4.37432193]
[1757236158424,9.7759183,203.68,203.58,6.8059183]
[1757236158620,9.7759183,203.68,203.59,4.37362778]
[1757236158827,9.7759183,203.68,203.58,6.8059183]
[1757236159026,9.7759183,203.68,203.59,4.37362778]
[1757236159229,9.7759183,203.68,203.58,6.8059183]
[1757236159428,1.52884423,203.67,203.6,1.52884423]
[1757236159621,8.12,203.66,203.6,1.52884423]
[1757236162834,8.12,203.66,203.62,1.52884423]
[1757236163136,8.12,203.69,203.62,1.52884423]
[1757236163734,8.12,203.69,203.64,1.52884423]
[1757236164037,7.04759869,203.72,203.64,1.52884423]
[1757236164038,8.12,203.71,203.64,1.52884423]
[1757236171443,9.64884423,203.71,203.64,1.52884423]
[1757236177245,15.16759869,203.71,203.64,1.52884423]
[1757236182148,13.63875446,203.71,203.64,1.52884423]
[1757236182346,8.12,203.69,203.64,1.52884423]
[1757236182742,1.52884423,203.7,203.64,1.52884423]
[1757236184042,8.12,203.69,203.64,1.52884423]
[1757236184238,1.52884423,203.7,203.64,1.52884423]
[1757236184438,8.12,203.69,203.64,1.52884423]
[1757236185343,8.12,203.7,203.64,1.52884423]
[1757236189253,13.63875446,203.7,203.64,1.52884423]
[1757236190053,13.63875446,203.7,203.57,17.82]
[1757236190054,8.12,203.7,203.68,1.52884423]
[1757236190950,7.52,203.71,203.68,1.52884423]
[1757236191155,5.51875446,203.73,203.68,1.52884423]
[1757236191652,7.52,203.72,203.68,1.52884423]
[1757236193255,13.03875446,203.72,203.68,1.52884423]
[1757236197354,7.52,203.72,203.68,1.52884423]
[1757236197951,5.51875446,203.73,203.68,1.52884423]
[1757236198156,7.52,203.72,203.68,1.52884423]
[1757236198358,5.51875446,203.73,203.68,1.52884423]
[1757236198659,7.52,203.72,203.68,1.52884423]
[1757236198956,5.51875446,203.73,203.68,1.52884423]
[1757236199155,7.52,203.72,203.68,1.52884423]
[1757236200160,5.51875446,203.73,203.68,1.52884423]
[1757236200652,7.52,203.72,203.68,1.52884423]
[1757236201362,5.51875446,203.73,203.68,1.52884423]
[1757236201555,7.52,203.72,203.68,1.52884423]
[1757236202062,5.51875446,203.73,203.68,1.52884423]
[1757236202459,7.52,203.72,203.68,1.52884423]
[1757236202859,5.51875446,203.73,203.68,1.52884423]
[1757236203061,7.52,203.72,203.68,1.52884423]
[1757236203561,5.51875446,203.73,203.68,1.52884423]
[1757236203759,7.52,203.7,203.68,1.52884423]
[1757236203965,5.51875446,203.71,203.68,1.52884423]
[1757236204264,7.52,203.7,203.68,1.52884423]
[1757236204463,5.51875446,203.71,203.68,1.52884423]
[1757236205954,7.52,203.7,203.68,1.52884423]
[1757236206159,5.51875446,203.71,203.68,1.52884423]
[1757236206359,7.52,203.7,203.68,1.52884423]
[1757236206560,5.51875446,203.71,203.68,1.52884423]
[1757236207161,7.52,203.7,203.68,1.52884423]
[1757236207361,5.51875446,203.71,203.68,1.52884423]
[1757236207565,7.52,203.7,203.68,1.52884423]
[1757236207766,5.51875446,203.71,203.68,1.52884423]
[1757236208256,7.52,203.7,203.68,1.52884423]
[1757236208461,5.51875446,203.71,203.68,1.52884423]
[1757236208661,5.51875446,203.71,203.7,1.52884423]
[1757236208865,5.51875446,203.71,203.66,111.21049443]
[1757236209063,7.52,203.72,203.7,1.52884423]
[1757236210161,5.51875446,203.73,203.7,1.52884423]
[1757236210466,7.52,203.72,203.7,1.52884423]
[1757236219473,7.52,203.72,203.69,2.38611384]
[1757236220478,5.51875446,203.75,203.69,2.38611384]
[1757236220674,7.85,203.74,203.69,2.38611384]
[1757236223780,5.51875446,203.75,203.66,118.01480827]
[1757236223980,7.85,203.74,203.67,4.39933174]
[1757236224282,7.85,203.74,203.68,4.39933174]
[1757236224581,7.85,203.74,203.69,4.39933174]
[1757236224784,5.51875446,203.75,203.66,118.01480827]
[1757236224980,7.85,203.74,203.67,4.39952448]
[1757236225182,7.85,203.74,203.68,4.39952448]
[1757236225384,5.51875446,203.75,203.69,4.39977173]
[1757236225682,7.85,203.74,203.66,118.01480827]
[1757236225878,7.85,203.74,203.67,4.39977173]
[1757236226079,7.85,203.74,203.68,4.39977173]
[1757236226278,7.85,203.74,203.69,4.39977173]
[1757236226482,7.85,203.74,203.67,4.418]
[1757236226783,7.85,203.74,203.68,4.40007689]
[1757236226972,7.85,203.74,203.69,4.40007689]
[1757236227177,7.85,203.74,203.67,4.418]
[1757236227379,7.85,203.74,203.68,4.40044458]
[1757236227583,7.85,203.74,203.69,4.40044458]
[1757236227882,7.85,203.74,203.68,4.4178]
[1757236228083,7.85,203.74,203.69,4.40044458]
[1757236228283,13.36875446,203.74,203.7,4.40044458]
[1757236228583,13.36875446,203.74,203.68,4.4178]
[1757236228782,13.36875446,203.74,203.69,4.40352654]
[1757236229081,13.36875446,203.74,203.7,4.40352654]
[1757236229282,13.36875446,203.74,203.68,4.4178]
[1757236229581,13.36875446,203.74,203.69,4.40404066]
[1757236229783,13.36875446,203.74,203.7,4.40404066]
[1757236229983,13.36875446,203.74,203.68,4.4178]
[1757236230183,13.36875446,203.74,203.69,4.40404066]
[1757236230379,13.36875446,203.74,203.7,4.40404066]
[1757236230683,13.36875446,203.74,203.68,4.4178]
[1757236230882,13.36875446,203.74,203.69,4.40450478]
[1757236231082,13.36875446,203.74,203.7,4.40450478]
[1757236231285,13.36875446,203.74,203.68,4.4178]
[1757236231484,13.36875446,203.74,203.69,4.40504771]
[1757236231685,13.36875446,203.74,203.7,4.40504771]
[1757236231885,13.36875446,203.74,203.68,4.4178]
[1757236232081,13.36875446,203.74,203.69,4.40504771]
[1757236232281,13.36875446,203.74,203.7,4.40504771]
[1757236232481,13.36875446,203.74,203.68,4.4178]
[1757236232684,7.85,203.73,203.69,8.8232839]
[1757236232884,7.85,203.73,203.7,4.4056839]
[1757236233183,7.85,203.73,203.69,4.4176]
[1757236233384,7.85,203.73,203.7,4.40643518]
[1757236233684,7.85,203.73,203.69,6.80371384]
[1757236233883,7.85,203.73,203.7,4.4058448]
[1757236234085,7.85,203.73,203.69,6.80371384]
[1757236234284,7.85,203.73,203.7,4.40671858]
[1757236234477,7.85,203.73,203.69,6.80371384]
[1757236234785,7.85,203.73,203.7,4.40725636]
[1757236234983,7.85,203.73,203.69,6.80371384]
[1757236235182,7.85,203.73,203.7,4.40725636]
[1757236235382,7.85,203.73,203.69,6.80371384]
[1757236235584,7.85,203.73,203.7,4.40777318]
[1757236235781,7.85,203.73,203.69,6.80371384]
[1757236236077,5.51875446,203.74,203.7,4.40777318]
[1757236236387,5.51875446,203.74,203.69,6.80371384]
[1757236236681,5.51875446,203.74,203.7,4.40788144]
[1757236236682,7.85,203.73,203.7,4.40788144]
[1757236236980,7.85,203.73,203.69,6.80371384]
[1757236237282,7.85,203.73,203.7,4.40769687]
[1757236237483,5.51875446,203.74,203.69,6.80371384]
[1757236237678,7.85,203.73,203.7,4.40774403]
[1757236237879,7.85,203.73,203.69,6.80371384]
[1757236238088,7.85,203.73,203.7,4.40720146]
[1757236238288,5.51875446,203.74,203.72,2.38611384]
[1757236238583,7.85,203.78,203.73,4.40642476]
[1757236238789,7.85,203.78,203.75,2.38611384]
[1757236238989,7.85,203.78,203.76,4.40642476]
[1757236239189,7.85,203.78,203.77,8.87005651]
[1757236239384,7.85,203.8,203.77,8.87005651]
[1757236239592,7.85,203.8,203.78,8.87005651]
[1757236239777,7.85,203.8,203.79,8.87005651]
[1757236243889,5.51875446,203.83,203.79,8.87005651]
[1757236244094,5.51875446,203.85,203.81,2.38611384]
[1757236244391,7.85,203.84,203.81,6.80111384]
[1757236244586,5.51875446,203.87,203.82,9.21504612]
[1757236244790,7.85,203.86,203.83,9.21504612]
[1757236244991,7.85,203.86,203.84,9.21288704]
[1757236245184,7.85,203.86,203.81,2.38611384]
[1757236245389,7.85,203.86,203.82,9.20571356]
[1757236245588,7.85,203.86,203.83,9.20571356]
[1757236245790,7.85,203.86,203.84,4.43841261]
[1757236246095,7.85,203.86,203.82,4.4147]
[1757236246393,7.85,203.86,203.83,9.20571356]
[1757236246595,7.85,203.86,203.82,4.4147]
[1757236246789,7.85,203.86,203.83,9.20003996]
[1757236246997,7.85,203.86,203.82,4.4147]
[1757236247189,13.36875446,203.88,203.68,77.5573]
[1757236247390,5.51875446,203.85,203.76,2.38611384]
[1757236247595,7.85,203.84,203.77,9.19703149]
[1757236247796,7.85,203.84,203.78,9.19703149]
[1757236247990,7.85,203.84,203.76,2.38611384]
[1757236248197,7.85,203.84,203.77,9.20288465]
[1757236248395,7.85,203.84,203.78,9.20288465]
[1757236248592,7.85,203.84,203.76,2.38611384]
[1757236248794,7.85,203.84,203.77,9.20193318]
[1757236248990,7.85,203.84,203.78,4.43661121]
[1757236249198,13.36875446,203.84,203.76,2.38611384]
[1757236249393,13.36875446,203.84,203.77,4.43636953]
[1757236249588,13.36875446,203.84,203.76,2.38611384]
[1757236249791,13.36875446,203.84,203.77,4.43636957]
[1757236249994,13.36875446,203.84,203.76,2.38611384]
[1757236250194,13.36875446,203.84,203.77,4.43636957]
[1757236250396,13.36875446,203.84,203.76,2.38611384]
[1757236250595,13.36875446,203.84,203.77,4.43603368]
[1757236250797,13.36875446,203.84,203.76,2.38611384]
[1757236251100,13.36875446,203.84,203.77,4.43648307]
[1757236251299,13.36875446,203.84,203.76,2.38611384]
[1757236251501,13.36875446,203.84,203.77,4.43623368]
[1757236251798,13.36875446,203.84,203.76,2.38611384]
[1757236252098,13.36875446,203.84,203.77,4.43623368]
[1757236252298,13.36875446,203.84,203.76,2.38611384]
[1757236252502,13.36875446,203.84,203.77,4.43624053]
[1757236252799,13.36875446,203.84,203.76,2.38611384]
[1757236252996,13.36875446,203.84,203.79,2.38611384]
[1757236253196,5.51875446,203.87,203.82,2.38611384]
[1757236253405,7.81,203.87,203.82,2.38611384]
[1757236253596,5.51875446,203.88,203.82,2.38611384]
[1757236253901,7.81,203.9,203.82,2.38611384]
[1757236254302,13.32875446,203.9,203.82,2.38611384]
[1757236255299,7.81,203.9,203.82,2.38611384]
[1757236258401,7.81,203.9,203.8,4.4151]
[1757236258601,7.81,203.9,203.81,2.38611384]
[1757236261908,7.81,203.9,203.8,4.4151]
[1757236262108,7.81,203.9,203.81,2.38611384]
[1757236263713,7.81,203.9,203.81,6.80101384]
[1757236263913,7.81,203.9,203.84,2.38611384]
[1757236264915,7.81,203.9,203.84,6.80031384]
[1757236268011,7.81,203.9,203.85,4.414]
[1757236269114,7.81,203.94,203.85,4.414]
[1757236270213,7.81,203.94,203.86,2.38611384]
[1757236271615,7.81,203.94,203.86,6.79991384]
[1757236279517,5.51875446,203.96,203.91,1.52425955]
[1757236279721,7.93,203.95,203.91,1.52425955]
[1757236280022,5.51875446,203.96,203.91,1.52425955]
[1757236280223,13.44875446,203.95,203.91,1.52425955]
[1757236280425,5.51875446,203.95,203.91,1.52425955]
[1757236281025,7.93,203.94,203.91,1.52425955]
[1757236281221,5.51875446,203.95,203.91,1.52425955]
[1757236282522,7.93,203.94,203.91,1.52425955]
[1757236283322,5.51875446,203.94,203.91,1.52425955]
[1757236283924,7.93,203.93,203.91,1.52425955]
[1757236284124,5.51875446,203.94,203.91,1.52425955]
[1757236284325,7.93,203.93,203.91,1.52425955]
[1757236284727,7.93,203.93,203.89,1.52425955]
[1757236285223,5.51875446,203.94,203.89,1.52425955]
[1757236285428,7.93,203.93,203.89,1.52425955]
[1757236285629,7.93,203.93,203.85,116.84083304]
[1757236285823,7.93,203.93,203.9,1.52425955]
[1757236286029,5.51875446,203.94,203.9,1.52425955]
[1757236287526,7.93,203.93,203.9,1.52425955]
[1757236288234,5.51875446,203.94,203.9,1.52425955]
[1757236289126,7.93,203.93,203.9,1.52425955]
[1757236289534,5.51875446,203.94,203.9,1.52425955]
[1757236290729,7.93,203.93,203.9,1.52425955]
[1757236290930,5.51875446,203.94,203.9,1.52425955]
[1757236292333,7.93,203.93,203.9,1.52425955]
[1757236292634,5.51875446,203.94,203.9,1.52425955]
[1757236293035,7.93,203.93,203.9,1.52425955]
[1757236293834,13.44875446,203.92,203.9,1.52425955]
[1757236294138,8.27880199,203.95,203.9,1.52425955]
[1757236294139,5.51875446,203.95,203.91,9.12817765]
[1757236294339,5.51875446,203.95,203.86,119.14]
[1757236294340,7.93,203.95,203.94,1.52425955]
[1757236296334,7.93,203.95,203.93,1.52425955]
[1757236296528,7.93,203.95,203.92,4.4126]
[1757236296733,7.93,203.95,203.93,10.63922618]
[1757236296934,7.93,203.95,203.93,1.52425955]
[1757236299341,5.51875446,203.98,203.93,5.93665955]
[1757236299540,7.93,203.97,203.95,1.52425955]
[1757236300131,5.51875446,203.99,203.95,1.52425955]
[1757236300337,7.93,203.98,203.97,1.52425955]
[1757236300540,7.93,203.99,203.93,1.52425955]
[1757236300837,7.93,203.96,203.88,1.52425955]
[1757236301142,7.93,203.94,203.89,9.12633698]
[1757236301342,7.93,203.94,203.9,9.12633698]
[1757236301539,7.93,203.94,203.88,1.52425955]
[1757236301741,7.93,203.94,203.89,9.12898384]
[1757236301942,7.93,203.94,203.9,9.12898384]
[1757236302142,7.93,203.94,203.88,1.52425955]
[1757236302342,7.93,203.94,203.89,9.13077803]
[1757236302644,7.93,203.94,203.9,9.13077803]
[1757236302839,7.93,203.94,203.88,1.52425955]
[1757236303043,7.93,203.94,203.89,9.13187218]
[1757236303342,13.44875446,203.94,203.88,1.52425955]
[1757236303535,13.44875446,203.94,203.89,9.13406717]
[1757236303740,13.44875446,203.94,203.88,1.52425955]
[1757236304039,7.93,203.94,203.88,1.52425955]
[1757236304344,14.97301401,203.94,203.86,1.52425955]
[1757236304536,9.45425955,203.94,203.87,9.13765566]
[1757236304741,1.52425955,203.92,203.86,1.52425955]
[1757236304936,7.93,203.91,203.87,9.13765566]
[1757236305141,7.93,203.91,203.86,1.52425955]
[1757236306649,7.93,203.91,203.85,113.95109259]
[1757236306950,7.93,203.91,203.86,9.14130921]
[1757236307151,1.52425955,203.92,203.85,113.95109259]
[1757236307352,7.93,203.91,203.86,9.14351693]
[1757236307546,7.93,203.91,203.85,112.42683304]
[1757236307746,7.04301401,203.92,203.85,112.42683304]
[1757236308153,7.93,203.91,203.87,1.52425955]
[1757236308542,7.93,203.91,203.89,1.52425955]
[1757236309744,7.54,203.93,203.87,1.52425955]
[1757236309950,13.05875446,203.93,203.87,1.52425955]
[1757236311150,13.05875446,203.93,203.88,9.14806661]
[1757236311347,7.54,203.92,203.87,1.52425955]
[1757236311552,7.54,203.92,203.88,9.14806661]
[1757236311754,7.54,203.92,203.87,1.52425955]
[1757236312054,5.51875446,203.93,203.88,9.14806661]
[1757236312348,5.51875446,203.93,203.87,1.52425955]
[1757236312554,5.51875446,203.93,203.88,9.14901789]
[1757236312763,7.54,203.92,203.87,1.52425955]
[1757236312954,5.51875446,203.93,203.88,9.1487918]
[1757236313152,5.51875446,203.93,203.89,9.1487918]
[1757236313355,7.54,203.92,203.9,9.1487918]
[1757236313551,7.54,203.92,203.87,1.52425955]
[1757236313752,7.54,203.92,203.88,9.14914644]
[1757236313949,7.54,203.92,203.89,9.14914644]
[1757236314153,5.51875446,203.93,203.9,9.14914644]
[1757236314451,5.51875446,203.93,203.87,1.52425955]
[1757236314754,5.51875446,203.93,203.88,9.14955986]
[1757236315057,5.51875446,203.94,203.89,10.67381941]
[1757236315254,7.54,203.93,203.9,9.14955986]
[1757236315455,5.51875446,203.94,203.89,1.52425955]
[1757236315651,7.54,203.93,203.9,9.15010217]
[1757236315857,7.54,203.93,203.89,1.52425955]
[1757236316153,7.54,203.93,203.9,9.15161567]
[1757236316352,7.54,203.93,203.89,1.52425955]
[1757236316548,5.51875446,203.95,203.91,1.52425955]
[1757236316747,7.54,203.95,203.93,1.52425955]
[1757236316947,7.54,203.95,203.94,9.14697776]
[1757236317353,5.51875446,203.97,203.93,1.52425955]
[1757236317559,7.54,203.96,203.93,1.52425955]
[1757236317858,5.51875446,203.97,203.93,1.52425955]
[1757236318158,7.54,203.96,203.91,1.52425955]
[1757236318358,7.54,203.96,203.92,9.14644963]
[1757236318555,7.54,203.96,203.93,9.14644963]
[1757236318756,5.51875446,203.97,203.91,1.52425955]
[1757236319055,7.54,203.96,203.92,9.14791382]
[1757236319257,5.51875446,203.97,203.93,9.14791382]
[1757236319458,7.54,203.96,203.91,1.52425955]
[1757236319655,5.51875446,203.97,203.92,9.14804826]
[1757236319856,5.51875446,203.97,203.93,9.14804826]
[1757236320058,5.51875446,203.97,203.91,1.52425955]
[1757236320362,7.54,203.96,203.92,9.14804826]
[1757236320558,7.54,203.96,203.93,9.14804826]
[1757236320759,14.58301401,203.96,203.88,1.52425955]
[1757236321062,7.54,203.93,203.88,1.52425955]
[1757236321762,5.51875446,203.94,203.88,1.52425955]
[1757236322150,7.54,203.93,203.88,1.52425955]
[1757236322359,5.51875446,203.94,203.88,1.52425955]
[1757236322759,7.54,203.93,203.88,1.52425955]
[1757236322962,5.51875446,203.94,203.88,1.52425955]
[1757236324164,7.54,203.93,203.9,9.14425955]
[1757236325664,5.51875446,203.95,203.9,9.14425955]
[1757236326165,7.54,203.94,203.9,9.14425955]
[1757236326362,5.51875446,203.95,203.9,1.52425955]
[1757236326556,7.54,203.94,203.91,7.62]
[1757236327157,7.54,203.94,203.9,1.52425955]
[1757236327557,7.54,203.94,203.91,7.62]
[1757236329871,7.54,203.94,203.9,1.52425955]
[1757236330168,7.54,203.94,203.91,7.62]
[1757236330370,7.54,203.94,203.91,9.14425955]
[1757236331970,5.51875446,203.95,203.91,9.14425955]
[1757236332371,7.54,203.94,203.91,9.14425955]
[1757236332570,7.54,203.94,203.91,1.52425955]
[1757236333066,5.51875446,203.95,203.91,1.52425955]
[1757236333670,7.54,203.93,203.86,1.52425955]
[1757236333870,5.51875446,203.92,203.87,9.00608785]
[1757236334066,7.54,203.91,203.88,9.00608785]
[1757236334265,7.54,203.92,203.89,4.34077276]
[1757236334571,7.54,203.92,203.86,1.52425955]
[1757236334866,5.51875446,203.91,203.87,8.93437633]
[1757236335064,5.51875446,203.91,203.86,1.52425955]
[1757236335265,7.54,203.9,203.87,8.93575576]
[1757236335465,7.54,203.9,203.86,1.52425955]
[1757236335666,7.54,203.9,203.87,8.93504099]
[1757236335868,5.51875446,203.91,203.86,1.52425955]
[1757236336069,7.54,203.9,203.87,8.93504099]
[1757236336264,5.51875446,203.91,203.86,1.52425955]
[1757236336469,7.54,203.9,203.87,8.93435527]
[1757236336667,5.51875446,203.91,203.86,1.52425955]
[1757236336870,5.51875446,203.91,203.85,112.42683304]
[1757236336871,7.04301401,203.9,203.85,112.42683304]
[1757236337077,7.54,203.88,203.85,112.42683304]
[1757236337474,7.54,203.88,203.85,120.04683304]
[1757236338977,7.54,203.88,203.86,4.34036823]
[1757236339176,7.54,203.88,203.85,120.18683304]
[1757236339377,7.54,203.88,203.86,4.34025985]
[1757236339673,7.54,203.88,203.85,120.18683304]
[1757236339874,7.54,203.88,203.86,4.34042343]
[1757236340072,7.54,203.88,203.86,7.76]
[1757236345180,13.05875446,203.88,203.86,7.76]
[1757236346375,5.51875446,203.89,203.86,7.76]
[1757236346581,13.38875446,203.9,203.87,12.10272111]
[1757236346782,13.38875446,203.9,203.87,7.76]
[1757236348582,13.38875446,203.9,203.86,7.76]
[1757236348786,13.38875446,203.9,203.88,7.76]
[1757236349087,7.87,203.89,203.83,10.1434358]
[1757236349286,5.51875446,203.9,203.84,8.93374745]
[1757236349490,7.87,203.89,203.85,16.69374745]
[1757236349682,5.51875446,203.9,203.86,8.93374745]
[1757236349881,7.87,203.88,203.87,4.34364737]
[1757236353085,5.51875446,203.89,203.83,6.7980358]
[1757236353291,5.51875446,203.9,203.84,8.92960486]
[1757236353581,5.51875446,203.9,203.85,8.92960486]
[1757236353782,5.51875446,203.9,203.87,7.76]
[1757236353987,13.38875446,203.91,203.84,7.76]
[1757236354191,13.38875446,203.91,203.83,6.7980358]
[1757236354192,5.51875446,203.91,203.86,7.76]
[1757236354384,5.51875446,203.91,203.83,6.7980358]
[1757236354578,5.51875446,203.91,203.85,7.76]
[1757236354778,7.87,203.9,203.87,7.76]
[1757236357989,7.87,203.9,203.84,7.76]
[1757236358195,7.87,203.9,203.85,4.34160912]
[1757236358388,13.38875446,203.9,203.84,7.76]
[1757236358590,5.51875446,203.91,203.85,8.92927707]
[1757236358792,7.87,203.9,203.84,7.76]
[1757236358994,7.87,203.9,203.85,8.92818787]
[1757236359292,7.87,203.9,203.84,7.76]
[1757236359495,7.87,203.9,203.85,8.92808748]
[1757236359696,7.87,203.9,203.84,7.76]
[1757236359890,5.51875446,203.91,203.85,8.92807925]
[1757236360091,7.87,203.9,203.84,7.76]
[1757236360291,7.87,203.9,203.85,8.92995253]
[1757236360491,7.87,203.9,203.84,7.76]
[1757236360789,5.51875446,203.91,203.85,8.92958132]
[1757236360994,5.51875446,203.91,203.83,2.3834358]
[1757236361195,7.87,203.9,203.84,16.6875971]
[1757236361385,7.87,203.9,203.85,8.9275971]
[1757236361590,7.87,203.9,203.84,7.76]
[1757236361790,5.51875446,203.91,203.85,8.92726179]
[1757236361991,7.87,203.9,203.84,7.76]
[1757236362194,5.51875446,203.91,203.85,8.92604116]
[1757236362387,13.38875446,203.9,203.84,7.76]
[1757236362696,7.87,203.89,203.85,12.10171425]
[1757236362997,5.51875446,203.9,203.85,7.76]
[1757236363196,5.51875446,203.9,203.86,8.92919775]
[1757236363495,13.38875446,203.9,203.82,2.3834358]
[1757236363795,13.38875446,203.9,203.83,16.69065129]
[1757236363995,13.38875446,203.9,203.84,8.93065129]
[1757236364195,7.87,203.89,203.85,16.69065129]
[1757236364496,7.87,203.89,203.86,16.69065129]
[1757236364790,5.51875446,203.9,203.87,4.34301079]
[1757236364996,5.51875446,203.9,203.86,7.76]
[1757236365295,7.87,203.89,203.87,4.34182577]
[1757236365495,7.87,203.89,203.86,7.76]
[1757236365697,7.87,203.89,203.87,4.34191403]
[1757236365997,7.87,203.89,203.86,7.76]